Workbook

Sheet DADOS BÁSICOS
A7: =CONCATENATE("Memória de cálculos para arranjo contratual do item ",MODELOPLANILHA) -> Memória de cálculos para arranjo contratual do item 9
A9: DADOS BÁSICOS DO PROJETO
A10: PREENCHIMENTO DO COORDENADOR DO PROJETO
A11: NOME DO PROJETO:
A12: VIGÊNCIA (MESES): | E12: =MAX(B12,1) -> 1
C14: ENSINO | G14: EXTENSÃO | I14: DESENVOLVIMENTO INSTITUCIONAL
A15: NATUREZA DO PROJETO: | C15: PESQUISA | G15: ESTÍMULO À INOVAÇÃO | I15: DESENVOLVIMENTO CIENTÍFICO E TECNOLÓGICO
A17: FONTE DE RECURSO:
A18: QUANTIDADE DE COORDENADORES DE SUBPROJETOS:
A19: EDITAL FIOCRUZ (PROGRAMA)? | C19: SIM | D19: =IF(DB_EDITALFIOCRUZ_SIM<>"","","X") -> X | E19: NÃO
A20: QUANTIDADE DE PARCELAS DE DESEMBOLSO:
A22: PREENCHIMENTO DA FIOTEC | K22: Modelo da Planilha | L22: 9
A24: CARACTERÍSTICAS
A25: CATEGORIA: | B25: X | C25: NACIONAL | E25: INTERNACIONAL
A26: TIPO DE FINANCIADOR: | C26: PÚBLICO | D26: X | E26: PRIVADO | G26: ECONOMIA MISTA
A27: AGENTE FINANCIADOR: | C27: FIOCRUZ | E27: FINEP | G27: BNDES | I27: OPAS | K27: PETROBRAS | L27: X | M27: OUTROS
A28: RECEITAS
A29: PROJETO DE ARRECADAÇÃO (VENDA DE LIVROS): | C29: SIM | D29: =IF(DB_PROJETODEARRECADACAO_SIM<>"","","X") -> X | E29: NÃO
A30: PROJETO DE ARRECADAÇÃO (SERVIÇOS TÉCNICOS ESPECIALIZADOS): | C30: SIM | D30: X | E30: NÃO
A31: PROJETO DE ARRECADAÇÃO (PRODUÇÃO DE INSUMOS PARA A SAÚDE): | B31: X | C31: SIM | E31: NÃO
A32: FONTE PROVENIENTE DE CONVÊNIO: | C32: SIM | D32: =IF(DB_FONTEPROVENIENTEDECONVENIO_SIM<>"","","X") -> X | E32: NÃO
A34: QUANTIDADE DE AGENTES FINANCIADORES
A35: TOTAL: | B35: 1
A36: QUE EXIGEM DOCUMENTAÇÃO COMPROBATÓRIA DA DOA:
A37: QUE EXIGEM AUTORIZAÇÃO PRÉVIA PARA REMANEJAMENTO:
A38: QUE EXIGEM COMPROVAÇÃO DE CONTRAPARTIDA FINANCEIRA E NÃO FINANCEIRA:
A39: COM NEGOCIAÇÃO DE GARANTIA CONTRATUAL:
A40: COM MODELOS PRÓPRIOS DE APRESENTAÇÃO DE PROPOSTA:
A41: COM PARTICIPAÇÃO DIRETA DA FIOTEC NA (RE)NEGOCIAÇÃO DO PROJETO:
A43: CARACTERÍSTICAS DE AQUISIÇÃO
A44: LEI 8666/90: | C44: SIM | D44: =IF(DB_8666_SIM<>"","","X") -> X | E44: NÃO
A45: DECRETO 8241/10: | B45: X | C45: SIM | D45: =IF(DB_8241_SIM<>"","","X") ->  | E45: NÃO
A46: QUANTIDADE DE CARTÕES PESQUISA:
A47: QUANTIDADE DE LINHAS TELEFÔNICAS:
A49: OPERAÇÕES
A50: SISTEMA ESPECÍFICO DE AGENTE FINANCIADOR: | C50: SIM | D50: =IF(DB_SISTEMAESPECIFICO_SIM<>"","","X") -> X | E50: NÃO
A51: QUANTIDADE DE LOCAIS COM EQUIPE EXECUTORA FORA DO RJ E DF:
A52: CONTROLES PARALELOS (EX: LOA/TED NO MESMO PROJETO) | C52: SIM | D52: =IF(DB_CONTROLESPARALELOS_SIM<>"","","X") -> X | E52: NÃO
A53: QUANTIDADE DE PROCESSOS SELETIVOS PARA CONTRATAÇÃO DE PESSOAS:
A55: INICIAÇÃO
A56: DOCUMENTAÇÃO SUPLEMENTAR PARA HABILITAÇÃO: | C56: SIM | D56: =IF(DB_DOCUMENTACAOSUPLEMENTAR_SIM<>"","","X") -> X | E56: NÃO
A57: PROJETO DE EDITAL: | C57: SIM | D57: =IF(DB_PROJETOEDITAL_SIM<>"","","X") -> X | E57: NÃO
A58: CONHECIMENTOS TÉCNICOS ESPECÍFICOS DA FIOTEC: | C58: SIM | D58: =IF(DB_CONHECIMENTOTECNICOFIOTEC_SIM<>"","","X") -> X | E58: NÃO
A59: QUANTIDADE DE ÓRGÃOS REGULADORES A SER SUBMETIDO O PROJETO:
A60: QUANTIDADE DE INSTÂNCIAS DE APROVAÇÃO:
A62: PRESTAÇÃO DE CONTAS
A63: PARCELA REEMBOLSO: | C63: SIM | D63: =IF(DB_PARCELAREEMBOLSO_SIM<>"","","X") -> X | E63: NÃO
A64: PRESTAÇÃO DE CONTAS SEM FORMULÁRIO DEFINIDO: | C64: SIM | D64: =IF(DB_PRESTACAODECONTASSEMFORMULARIO_SIM<>"","","X") -> X | E64: NÃO
A65: PRESTAÇÃO DE CONTAS DIFERENCIADA: | C65: SIM | D65: =IF(DB_PRESTACAODECONTASDIFERENCIADA_SIM<>"","","X") -> X | E65: NÃO
A66: PRESTAÇÃO DE CONTAS COM ENVIO DE DOCUMENTAÇÃO COMPROBATÓRIA: | C66: SIM | D66: =IF(DB_PRESTACAODECONTASENVIODOCUMENTACAO_SIM<>"","","X") -> X | E66: NÃO
A67: PRESTAÇÃO DE CONTAS DECRETO 7.423/2010: | B67: X | C67: SIM | D67: =IF(DB_PRESTACAOCONTAS7423_SIM<>"","","X") ->  | E67: NÃO

Sheet MEMÓRIA
A1: =CONCATENATE("Memória de cálculos para arranjo contratual do item ",MODELOPLANILHA) -> Memória de cálculos para arranjo contratual do item 9
A3: Obs:As despesas apresentadas devem estar relacionadas às atividades do Projeto
D4: =NomeDoProjeto -> 0
D5: Passagens
D6: Passagens Nacionais | G6: Quantidade | H6: Valor unitário | I6: Valor total
I7: =H7*G7 -> 0
I8: =H8*G8 -> 0
I9: =H9*G9 -> 0
I10: 0
I11: 0
I12: 0
I13: =SUBTOTAL(9,INDIRECT("i" & (ROW(I6)+1) & ":i" & (ROW(I13)-1))) -> 0
D14: Passagens Internacionais | G14: Quantidade | H14: Valor unitário | I14: Valor total
I15: =H15*G15 -> 0
I16: =H16*G16 -> 0
I17: =H17*G17 -> 0
I18: =H18*G18 -> 0
I19: 0
I20: 0
I21: 0
D22: Deve-se considerar, ainda, a taxa ADU (referente às despesas aeroportuárias, de embarque, etc. cobradas pelas empresas aéreas na medida da confirmação do voo, mediante fechamento da proposta) de R$ 40,00 em orçamento abaixo de R$ 400,00 e de 10% sobre o orçamento total para os outros casos. | I22: =SUBTOTAL(9,INDIRECT("i" & (ROW(I14)+1) & ":i" & (ROW(I22)-1))) -> 0
D24: Diárias
D25: Diárias Nacionais Descrição | G25: Quantidade | H25: Valor unitário | I25: Valor Total
I26: =H26*G26 -> 0
I27: =H27*G27 -> 0
I28: =H28*G28 -> 0
I29: 0
I30: 0
I31: 0
I32: 0
I33: =SUBTOTAL(9,INDIRECT("i" & (ROW(I25)+1) & ":i" & (ROW(I33)-1))) -> 0
D35: Diárias Internacionais Descrição | G35: Quantidade | H35: Valor unitário | I35: Valor Total
I36: =H36*G36 -> 0
I37: =H37*G37 -> 0
I38: =H38*G38 -> 0
I39: 0
I40: 0
I41: 0
I42: =SUBTOTAL(9,INDIRECT("i" & (ROW(I35)+1) & ":i" & (ROW(I42)-1))) -> 0
D44: Material de Consumo
D45: Produto Nacional | G45: Quantidade | H45: Valor unitário | I45: Valor total
I46: =H46*G46 -> 0
I47: =H47*G47 -> 0
I48: =H48*G48 -> 0
I49: =H49*G49 -> 0
I50: 0
I51: 0
D52: Nas aquisições de material de consumo, material permanente e equipamento adquiridos fora do Rio de Janeiro incidirá o DIFAL - Diferencial de alíquota de ICMS –entre Estados (até 15%). | I52: =SUBTOTAL(9,INDIRECT("i" & (ROW(I45)+1) & ":i" & (ROW(I52)-1))) -> 0
D53: Produto Importado | G53: Quantidade | H53: Valor unitário | I53: Valor total
I54: 0
I55: 0
I56: 0
I57: 0
I58: 0
D59: Os custos de importação (deslocamento, armazenagem...), dependendo do item, podem variar de 20% a 50% do valor do material a ser importado. | I59: =SUBTOTAL(9,INDIRECT("i" & (ROW(I53)+1) & ":i" & (ROW(I59)-1))) -> 0
D61: Material Permanente
D62: Produto Nacional | G62: Quantidade | H62: Valor unitário | I62: Valor total
I63: =H63*G63 -> 0
I64: =H64*G64 -> 0
I65: 0
I66: 0
I67: 0
I68: 0
D69: · Nas aquisições de material permanente e equipamento adquiridos fora do Rio de Janeiro incidirá o DIFAL - Diferencial de alíquota de ICMS –entre Estados (até 15%); · Em projetos FIOCRUZ apenas com aprovação da Unidade. | I69: =SUBTOTAL(9,INDIRECT("i" & (ROW(I62)+1) & ":i" & (ROW(I69)-1))) -> 0
D70: Produto Importado | G70: Quantidade | H70: Valor unitário | I70: Valor total
I71: =H71*G71 -> 0
I72: =H72*G72 -> 0
I73: 0
I74: 0
I75: 0
I76: 0
D77: Os custos de importação (deslocamento, armazenagem...), dependendo do item, podem variar de 20% a 50% do valor do material a ser importado. | I77: =SUBTOTAL(9,INDIRECT("i" & (ROW(I70)+1) & ":i" & (ROW(I77)-1))) -> 0
D79: Pessoa Física
D80: Descrição | E80: Modalidade | F80: Quantidade de Profissionais | G80: Meses de trabalho | H80: Valor unitário | I80: Valor total
I81: =F81*H81*G81 -> 0
I82: =F82*H82*G82 -> 0
I83: 0
I84: 0
I85: 0
I86: 0
I87: 0
D89: · Para Celetista e estagiário- preencher formulário "estimativa de contratação de pessoal" para levantamento de Custos diretos e Indiretos; · Para Autônomo-informar valor bruto para cálculos de descontos do empregado (20%) mais IR, se houver, etc..
I90: =SUBTOTAL(9,INDIRECT("i" & (ROW(I80)+1) & ":i" & (ROW(I90)-1)))+H90 -> 0
D92: Pessoa Jurídica
D93: Serviço | G93: Quantidade | H93: Valor unitário | I93: Valor total
I94: =H94*G94 -> 0
I95: =H95*G95 -> 0
I96: 0
I97: 0
I98: 0
I99: 0
I100: =SUBTOTAL(9,INDIRECT("i" & (ROW(I93)+1) & ":i" & (ROW(I100)-1))) -> 0
D102: Custo de Implementação | I102: =ROUND(SUBTOTAL(9,I7:I101),2) -> 0
D103: Custo de Implementação Anual | I103: =ROUND(CIA,2) -> 0
D104: Despesa Operacional e Administrativa (DOA)* | H104: =Carteira ->  | I104: =ROUND(CIP*DOA,2)+ROUND(DOA_Complexidade,2)+IF(OutrosLançamentos=0,0,ROUND(OutrosLançamentos,2)) -> 0
D105: =IF(OR(I105=0,I105=""),"",IF(I105>0,"Acréscimos","Descontos")) ->  | I105: =IF(OutrosLançamentos=0,"",ROUND(OutrosLançamentos,2)) -> 
D106: FUNDO DE INOVAÇÃO | H106: 0 | I106: =VALORTOTALPROJETO*PFINOVACAO -> 0
D107: ISS | H107: 0 | I107: =ROUND(I108*PISS,2) -> 0
D108: Valor Total do Projeto | I108: =ROUND((CIP+ValorDOA)/(1-PISS-PFINOVACAO),2) -> 0
D110: Obs1: Poderá haver incidencia de impostos sobre remessas ao exterior (IOF, IR), independente da natureza da despesa. *DOA- Despesa Operacional e Administrativa (DOA) a ser validada com a Fiotec.
D111: Os valores aqui calculados poderão sofrer alterações após a validação do setor de Iniciação.

Sheet RESUMO (hidden)
A1: RESUMO
A2: NOME DO PROJETO: | B2: =NomeDoProjeto -> 0
A3: VIGÊNCIA (MESES): | B3: =Vigencia -> 1
A4: NATUREZA DO PROJETO: | B4: =quadro(CONCATENATE(tflat("ENSINO",DB_ENSINO),tflat("PESQUISA",DB_PESQUISA),tflat("EXTENSÃO",DB_EXTENSAO),tflat("DESENVOLVIMENTO INSTITUCIONAL",DB_DESENVOLVIMENTOINSTITUCIONAL),tflat("DESENVOLVIMENTO CIENTÍFICO",DB_DESENVOLVIMENTOCIENTIFICO),tflat("ESTÍMULO À INOVAÇÃO",DB_ESTIMULOAINOVACAO)),"|") -> 
A6: FONTE DE RECURSO: | B6: =FONTE_DE_RECURSO -> 0
A7: QUANTIDADE DE COORDENADORES DE SUBPROJETOS: | B7: =DB_QTDCOORDENADORESSUBPROJETOS -> 0
A8: EDITAL FIOCRUZ (PROGRAMA)? | B8: =IF(DB_EDITALFIOCRUZ_SIM<>"","SIM","NÃO") -> NÃO
A9: QUANTIDADE DE PARCELAS DE DESEMBOLSO: | B9: =DB_QTDPARCELASDESEMBOLSO -> 0
A10: CATEGORIA: | B10: =quadro(CONCATENATE(tflat("NACIONAL",DB_NACIONAL),tflat("INTERNACIONAL",DB_INTERNACIONAL)),"|") -> NACIONAL
A12: TIPO DE FINANCIADOR: | B12: =quadro(CONCATENATE(tflat("PÚBLICO",DB_PUBLICO),tflat("PRIVADO",DB_PRIVADO),tflat("ECONOMIA MISTA",DB_ECONOMIAMISTA)),"|") -> PRIVADO
A14: AGENTE FINANCIADOR: | B14: =quadro(CONCATENATE(tflat("FIOCRUZ",DB_FIOCRUZ),tflat("FINEP",DB_FINEP),tflat("OPAS",DB_OPAS),tflat("PETROBRAS",DB_PETROBRAS),tflat("OUTROS",DB_OUTROS)),"|") -> OUTROS
A16: OUTRAS CARACTERÍSTICAS DO PROJETO: | B16: =quadro(CONCATENATE(tflat("VENDA DE LIVROS",DB_PROJETODEARRECADACAO_SIM),tflat("SERVIÇOS TÉCNICOS ESPECIALIZADOS",DB_SERVICOSTECNICOSESPECIALIZADOS_SIM),tflat("PRODUÇÃO DE INSUMOS",DB_PRODUCAODEINSUMOS_SIM),tflat("FONTE PROVENIENTE DE CONVÊNIO",DB_FONTEPROVENIENTEDECONVENIO_SIM),TFLAT1("AGENTE FINANCIADOR EXIGE DOCUMENTAÇÃO COMPROBATÓRIA DA DOA",DB_QTDAGENTESDOCUMENTACAOCUSTOOPERACIONAL,"AGENTES FINANCIADORES EXIGEM DOCUMENTAÇÃO COMPROBATÓRIA DA DOA"),TFLAT1("AGENTE FINANCIADOR EXIGE AUTORIZAÇÃO PRÉVIA PARA REMANEJAMENTO",DB_QTDAGENTESAUTORIZACAOREMANEJAMENTO,"AGENTES FINANCIADORES EXIGEM AUTORIZAÇÃO PRÉVIA PARA REMANEJAMENTO"),TFLAT1("AGENTE FINANCIADOR EXIGE COMPROVAÇÃO DE CONTRAPARTIDA FINANCEIRA E NÃO FINANCEIRA",DB_QTDAGENTESCONTRAPARTIDA,"AGENTES FINANCIADORES EXIGEM COMPROVAÇÃO DE CONTRAPARTIDA FINANCEIRA E NÃO FINANCEIRA"),TFLAT1("AGENTE FINANCIADOR COM NEGOCIAÇÃO DE GARANTIA CONTRATUAL",DB_QTDAGENTEGARANTIACONTRATUAL,"AGENTES FINANCIADORES COM NEGOCIAÇÃO DE GARANTIA CONTRATUAL"),TFLAT1("AGENTE FINANCIADOR COM MODELO PRÓPRIO DE APRESENTAÇÃO DE PROPOSTA",DB_QTDAGENTEMODELOPROPRIOPROPOSTA,"AGENTES FINANCIADORES COM MODELOS PRÓPRIOS DE APRESENTAÇÃO DE PROPOSTA"),TFLAT1("AGENTE FINANCIADOR COM PARTICIPAÇÃO DIRETA DA FIOTEC NA (RE)NEGOCIAÇÃO DO PROJETO",DB_QTDAGENTENEGOCIACAOFIOTEC,"AGENTES FINANCIADORES COM PARTICIPAÇÃO DIRETA DA FIOTEC NA (RE)NEGOCIAÇÃO DO PROJETO"),tflat("AQUISIÇÕES PELA LEI 8666/90",DB_8666_SIM),tflat("AQUISIÇÕES PELO DECRETO 8241/10",DB_8241_SIM),TFLAT1("CARTÃO PESQUISA",DB_QTDCARTAOPESQUISA,"CARTÕES PESQUISA"),TFLAT1("LINHA TELEFÔNICA",DB_QTDLINHATELEFONICA,"LINHAS TELEFÔNICAS"),tflat("AGENTE FINANCIADOR COM SISTEMA ESPECÍFICO",DB_SISTEMAESPECIFICO_SIM),TFLAT1("EQUIPE EXECUTORA FORA DO RJ/DF",DB_QTDEQUIPESFORARJDF,"EQUIPES EXECUTORAS FORA DO RJ/DF"),tflat("CONTROLES PARALELOS",DB_CONTROLESPARALELOS_SIM),TFLAT1("PROCESSO SELETIVO",DB_QTDPROCESSOSSELETIVOS,"PROCESSOS SELETIVOS")),"|") -> PRODUÇÃO DE INSUMOS AQUISIÇÕES PELO DECRETO 8241/10
B19: =quadro(CONCATENATE(tflat("DOCUMENTAÇÃO SUPLEMENTAR PARA HABILITAÇÃO",DB_DOCUMENTACAOSUPLEMENTAR_SIM),tflat("PROJETO DE EDITAL",DB_PROJETOEDITAL_SIM),tflat("CONHECIMENTOS TÉCNICOS ESPECÍFICOS DA FIOTEC",DB_CONHECIMENTOTECNICOFIOTEC_SIM),TFLAT1("ÓRGÃO REGULADOR PARA SUBMISSÃO DO PROJETO",DB_QTDORGAOREGULADOR,"ÓRGÃOS REGULADORES PARA SUBMISSÃO DO PROJETO"),TFLAT1("INSTÂNCIA DE APROVAÇÃO",DB_QTDINSTACIAAPROVACAO,"INSTÂNCIAS DE APROVAÇÃO"),tflat("PARCELA REEMBOLSO",DB_PARCELAREEMBOLSO_SIM),tflat("PRESTAÇÃO DE CONTAS SEM FORMULÁRIO DEFINIDO",DB_PRESTACAODECONTASSEMFORMULARIO_SIM),tflat("PRESTAÇÃO DE CONTAS DIFERENCIADA",DB_PRESTACAODECONTASDIFERENCIADA_SIM),tflat("PRESTAÇÃO DE CONTAS COM ENVIO DE DOCUMENTAÇÃO COMPROBATÓRIA",DB_PRESTACAODECONTASENVIODOCUMENTACAO_SIM),tflat("PRESTAÇÃO DE CONTAS DECRETO 4723",DB_PRESTACAOCONTAS7423_SIM),TFLAT1("CONTRATAÇÃO DE CELETISTA",QTDRiscoCeletista,"CONTRATAÇÕES DE CELETISTAS"),TFLAT1("CONTRATAÇÃO DE BOLSISTA",QtdRiscoBolsista,"CONTRATAÇÕES DE BOLSISTAS"),TFLAT1("CONTRATAÇÃO DE AUTÔNOMO",QtdRiscoAutônomo,"CONTRATAÇÕES DE AUTÔNOMOS")),"|") -> PRESTAÇÃO DE CONTAS DECRETO 4723
A24: Carteira | B24: % DOA | C24: CIA de | D24: CIA Até
A25: A1 | B25: 0.08356683563 | C25: 29333333.34 | D25: 40000000 | E25: =IF(A25=Carteira,1,0) -> 0
A26: A2 | B26: 0.08287655081 | C26: 20800000.01 | D26: 29333333.33 | E26: 0
A27: A3 | B27: 0.082186266 | C27: 14400000.01 | D27: 20800000 | E27: 0
A28: A4 | B28: 0.08149598118 | C28: 10133333.34 | D28: 14400000 | E28: 0
A29: A5 | B29: 0.08080569636 | C29: 8000000.01 | D29: 10133333.33 | E29: 0
A30: B1 | B30: 0.08011541154 | C30: 6666666.677 | D30: 8000000 | E30: 0
A31: B2 | B31: 0.07942512672 | C31: 5600000.01 | D31: 6666666.667 | E31: 0
A32: B3 | B32: 0.07873484191 | C32: 4800000.01 | D32: 5600000 | E32: 0
A33: B4 | B33: 0.07804455709 | C33: 4266666.677 | D33: 4800000 | E33: 0
A34: B5 | B34: 0.07735427227 | C34: 4000000.01 | D34: 4266666.667 | E34: 0
A35: C1 | B35: 0.07666398745 | C35: 3200000.01 | D35: 4000000 | E35: 0
A36: C2 | B36: 0.07597370263 | C36: 2560000.01 | D36: 3200000 | E36: 0
A37: C3 | B37: 0.07528341782 | C37: 2080000.01 | D37: 2560000 | E37: 0
A38: C4 | B38: 0.074593133 | C38: 1760000.01 | D38: 2080000 | E38: 0
A39: C5 | B39: 0.07390284818 | C39: 1600000.01 | D39: 1760000 | E39: 0
A40: D1 | B40: 0.07321256336 | C40: 1333333.343 | D40: 1600000 | E40: 0
A41: D2 | B41: 0.07252227854 | C41: 1120000.01 | D41: 1333333.333 | E41: 0
A42: D3 | B42: 0.07183199373 | C42: 960000.01 | D42: 1120000 | E42: 0
A43: D4 | B43: 0.07114170891 | C43: 853333.3433 | D43: 960000 | E43: 0
A44: D5 | B44: 0.07045142409 | C44: 800000.01 | D44: 853333.3333 | E44: 0
A45: E1 | B45: 0.06976113927 | C45: 533333.3433 | D45: 800000 | E45: 0
A46: E2 | B46: 0.06907085445 | C46: 320000.01 | D46: 533333.3333 | E46: 0
A47: E3 | B47: 0.06838056964 | C47: 160000.01 | D47: 320000 | E47: 0
A48: E4 | B48: 0.06769028482 | C48: 53333.34333 | D48: 160000 | E48: 0
A49: E5 | B49: 0.067 | C49: 0 | D49: 53333.33333 | E49: 0
A51: Faixa de Complexidade | B51: Valor | C51: Pontos de | D51: Pontos até
A52: ='BASE COMPLEXIDADE'!O3 -> X1 | B52: ='BASE COMPLEXIDADE'!R3 -> 1032.72045 | C52: ='BASE COMPLEXIDADE'!P3 -> 0.01 | D52: ='BASE COMPLEXIDADE'!Q3 -> 112.07 | E52: =IF(A52=FAIXA_COMPLEXIDADE,1,0) -> 1
A53: ='BASE COMPLEXIDADE'!O4 -> X2 | B53: ='BASE COMPLEXIDADE'!R4 -> 2065.4409 | C53: ='BASE COMPLEXIDADE'!P4 -> 112.08 | D53: ='BASE COMPLEXIDADE'!Q4 -> 224.15 | E53: 0
A54: ='BASE COMPLEXIDADE'!O5 -> X3 | B54: ='BASE COMPLEXIDADE'!R5 -> 3098.16135 | C54: ='BASE COMPLEXIDADE'!P5 -> 224.16 | D54: ='BASE COMPLEXIDADE'!Q5 -> 336.22 | E54: 0
A55: ='BASE COMPLEXIDADE'!O6 -> X4 | B55: ='BASE COMPLEXIDADE'!R6 -> 4130.8818 | C55: ='BASE COMPLEXIDADE'!P6 -> 336.23 | D55: ='BASE COMPLEXIDADE'!Q6 -> 448.3 | E55: 0
A56: ='BASE COMPLEXIDADE'!O7 -> X5 | B56: ='BASE COMPLEXIDADE'!R7 -> 5163.60225 | C56: ='BASE COMPLEXIDADE'!P7 -> 448.31 | D56: ='BASE COMPLEXIDADE'!Q7 -> 560.37 | E56: 0
A57: ='BASE COMPLEXIDADE'!O8 -> X6 | B57: ='BASE COMPLEXIDADE'!R8 -> 6196.3227 | C57: ='BASE COMPLEXIDADE'!P8 -> 560.38 | D57: ='BASE COMPLEXIDADE'!Q8 -> ... | E57: 0
A59: RESUMO FINANCEIRO
A60: (A) CUSTO DE IMPLEMENTAÇÃO DO PROJETO | C60: =D60/$D$67 ->  | D60: =CIP -> 0
A61: (B) DOA BASE | D61: =ROUND(CIP*DOA,2) -> 0
A62: (C) COMPLEXIDADE | D62: =ROUND(DOA_Complexidade,2) -> 0
A63: (D) OUTROS | D63: =ROUND(OutrosLançamentos,2) -> 0
A64: (E) VALOR TOTAL DA DOA (B+C+D) | D64: =SUBTOTAL(9,D61:D63) -> 0
A65: (F) FUNDO DE INOVAÇÃO | C65: =D65/$D$67 ->  | D65: =FINOVACAO -> 0
A66: (G) VALOR DO ISS | D66: =VALORISS -> 0
A67: (H) VALOR TOTAL DO PROJETO | D67: =SUBTOTAL(9,D60:D66) -> 0

Sheet RESUMO FIOTEC (hidden)
A1: RESUMO
A2: NOME DO PROJETO: | B2: =NomeDoProjeto -> 0
A3: VIGÊNCIA (MESES): | B3: =Vigencia -> 1
A4: NATUREZA DO PROJETO: | B4: =quadro(CONCATENATE(tflat("ENSINO",DB_ENSINO),tflat("PESQUISA",DB_PESQUISA),tflat("EXTENSÃO",DB_EXTENSAO),tflat("DESENVOLVIMENTO INSTITUCIONAL",DB_DESENVOLVIMENTOINSTITUCIONAL),tflat("DESENVOLVIMENTO CIENTÍFICO",DB_DESENVOLVIMENTOCIENTIFICO),tflat("ESTÍMULO À INOVAÇÃO",DB_ESTIMULOAINOVACAO)),"|") -> 
A6: FONTE DE RECURSO: | B6: =FONTE_DE_RECURSO -> 0
A7: QUANTIDADE DE COORDENADORES DE SUBPROJETOS: | B7: =DB_QTDCOORDENADORESSUBPROJETOS -> 0
A8: EDITAL FIOCRUZ (PROGRAMA)? | B8: =IF(DB_EDITALFIOCRUZ_SIM<>"","SIM","NÃO") -> NÃO
A9: QUANTIDADE DE PARCELAS DE DESEMBOLSO: | B9: =DB_QTDPARCELASDESEMBOLSO -> 0
A10: CATEGORIA: | B10: =quadro(CONCATENATE(tflat("NACIONAL",DB_NACIONAL),tflat("INTERNACIONAL",DB_INTERNACIONAL)),"|") -> NACIONAL
A12: TIPO DE FINANCIADOR: | B12: =quadro(CONCATENATE(tflat("PÚBLICO",DB_PUBLICO),tflat("PRIVADO",DB_PRIVADO),tflat("ECONOMIA MISTA",DB_ECONOMIAMISTA)),"|") -> PRIVADO
A14: AGENTE FINANCIADOR: | B14: =quadro(CONCATENATE(tflat("FIOCRUZ",DB_FIOCRUZ),tflat("FINEP",DB_FINEP),tflat("OPAS",DB_OPAS),tflat("PETROBRAS",DB_PETROBRAS),tflat("OUTROS",DB_OUTROS)),"|") -> OUTROS
A16: OUTRAS CARACTERÍSTICAS DO PROJETO: | B16: =quadro(CONCATENATE(tflat("VENDA DE LIVROS",DB_PROJETODEARRECADACAO_SIM),tflat("SERVIÇOS TÉCNICOS ESPECIALIZADOS",DB_SERVICOSTECNICOSESPECIALIZADOS_SIM),tflat("PRODUÇÃO DE INSUMOS",DB_PRODUCAODEINSUMOS_SIM),tflat("FONTE PROVENIENTE DE CONVÊNIO",DB_FONTEPROVENIENTEDECONVENIO_SIM),TFLAT1("AGENTE FINANCIADOR EXIGE DOCUMENTAÇÃO COMPROBATÓRIA DA DOA",DB_QTDAGENTESDOCUMENTACAOCUSTOOPERACIONAL,"AGENTES FINANCIADORES EXIGEM DOCUMENTAÇÃO COMPROBATÓRIA DA DOA"),TFLAT1("AGENTE FINANCIADOR EXIGE AUTORIZAÇÃO PRÉVIA PARA REMANEJAMENTO",DB_QTDAGENTESAUTORIZACAOREMANEJAMENTO,"AGENTES FINANCIADORES EXIGEM AUTORIZAÇÃO PRÉVIA PARA REMANEJAMENTO"),TFLAT1("AGENTE FINANCIADOR EXIGE COMPROVAÇÃO DE CONTRAPARTIDA FINANCEIRA E NÃO FINANCEIRA",DB_QTDAGENTESCONTRAPARTIDA,"AGENTES FINANCIADORES EXIGEM COMPROVAÇÃO DE CONTRAPARTIDA FINANCEIRA E NÃO FINANCEIRA"),TFLAT1("AGENTE FINANCIADOR COM NEGOCIAÇÃO DE GARANTIA CONTRATUAL",DB_QTDAGENTEGARANTIACONTRATUAL,"AGENTES FINANCIADORES COM NEGOCIAÇÃO DE GARANTIA CONTRATUAL"),TFLAT1("AGENTE FINANCIADOR COM MODELO PRÓPRIO DE APRESENTAÇÃO DE PROPOSTA",DB_QTDAGENTEMODELOPROPRIOPROPOSTA,"AGENTES FINANCIADORES COM MODELOS PRÓPRIOS DE APRESENTAÇÃO DE PROPOSTA"),TFLAT1("AGENTE FINANCIADOR COM PARTICIPAÇÃO DIRETA DA FIOTEC NA (RE)NEGOCIAÇÃO DO PROJETO",DB_QTDAGENTENEGOCIACAOFIOTEC,"AGENTES FINANCIADORES COM PARTICIPAÇÃO DIRETA DA FIOTEC NA (RE)NEGOCIAÇÃO DO PROJETO"),tflat("AQUISIÇÕES PELA LEI 8666/90",DB_8666_SIM),tflat("AQUISIÇÕES PELO DECRETO 8241/10",DB_8241_SIM),TFLAT1("CARTÃO PESQUISA",DB_QTDCARTAOPESQUISA,"CARTÕES PESQUISA"),TFLAT1("LINHA TELEFÔNICA",DB_QTDLINHATELEFONICA,"LINHAS TELEFÔNICAS"),tflat("AGENTE FINANCIADOR COM SISTEMA ESPECÍFICO",DB_SISTEMAESPECIFICO_SIM),TFLAT1("EQUIPE EXECUTORA FORA DO RJ/DF",DB_QTDEQUIPESFORARJDF,"EQUIPES EXECUTORAS FORA DO RJ/DF"),tflat("CONTROLES PARALELOS",DB_CONTROLESPARALELOS_SIM),TFLAT1("PROCESSO SELETIVO",DB_QTDPROCESSOSSELETIVOS,"PROCESSOS SELETIVOS")),"|") -> PRODUÇÃO DE INSUMOS AQUISIÇÕES PELO DECRETO 8241/10
B19: =quadro(CONCATENATE(tflat("DOCUMENTAÇÃO SUPLEMENTAR PARA HABILITAÇÃO",DB_DOCUMENTACAOSUPLEMENTAR_SIM),tflat("PROJETO DE EDITAL",DB_PROJETOEDITAL_SIM),tflat("CONHECIMENTOS TÉCNICOS ESPECÍFICOS DA FIOTEC",DB_CONHECIMENTOTECNICOFIOTEC_SIM),TFLAT1("ÓRGÃO REGULADOR PARA SUBMISSÃO DO PROJETO",DB_QTDORGAOREGULADOR,"ÓRGÃOS REGULADORES PARA SUBMISSÃO DO PROJETO"),TFLAT1("INSTÂNCIA DE APROVAÇÃO",DB_QTDINSTACIAAPROVACAO,"INSTÂNCIAS DE APROVAÇÃO"),tflat("PARCELA REEMBOLSO",DB_PARCELAREEMBOLSO_SIM),tflat("PRESTAÇÃO DE CONTAS SEM FORMULÁRIO DEFINIDO",DB_PRESTACAODECONTASSEMFORMULARIO_SIM),tflat("PRESTAÇÃO DE CONTAS DIFERENCIADA",DB_PRESTACAODECONTASDIFERENCIADA_SIM),tflat("PRESTAÇÃO DE CONTAS COM ENVIO DE DOCUMENTAÇÃO COMPROBATÓRIA",DB_PRESTACAODECONTASENVIODOCUMENTACAO_SIM),tflat("PRESTAÇÃO DE CONTAS DECRETO 4723",DB_PRESTACAOCONTAS7423_SIM),TFLAT1("CONTRATAÇÃO DE CELETISTA",QTDRiscoCeletista,"CONTRATAÇÕES DE CELETISTAS"),TFLAT1("CONTRATAÇÃO DE BOLSISTA",QtdRiscoBolsista,"CONTRATAÇÕES DE BOLSISTAS"),TFLAT1("CONTRATAÇÃO DE AUTÔNOMO",QtdRiscoAutônomo,"CONTRATAÇÕES DE AUTÔNOMOS")),"|") -> PRESTAÇÃO DE CONTAS DECRETO 4723
A24: Carteira | B24: % DOA | C24: CIA de | D24: CIA Até
A25: A1 | B25: 0.08356683563 | C25: 29333333.34 | D25: 40000000 | E25: =IF(A25=Carteira,1,0) -> 0
A26: A2 | B26: 0.08287655081 | C26: 20800000.01 | D26: 29333333.33 | E26: 0
A27: A3 | B27: 0.082186266 | C27: 14400000.01 | D27: 20800000 | E27: 0
A28: A4 | B28: 0.08149598118 | C28: 10133333.34 | D28: 14400000 | E28: 0
A29: A5 | B29: 0.08080569636 | C29: 8000000.01 | D29: 10133333.33 | E29: 0
A30: B1 | B30: 0.08011541154 | C30: 6666666.677 | D30: 8000000 | E30: 0
A31: B2 | B31: 0.07942512672 | C31: 5600000.01 | D31: 6666666.667 | E31: 0
A32: B3 | B32: 0.07873484191 | C32: 4800000.01 | D32: 5600000 | E32: 0
A33: B4 | B33: 0.07804455709 | C33: 4266666.677 | D33: 4800000 | E33: 0
A34: B5 | B34: 0.07735427227 | C34: 4000000.01 | D34: 4266666.667 | E34: 0
A35: C1 | B35: 0.07666398745 | C35: 3200000.01 | D35: 4000000 | E35: 0
A36: C2 | B36: 0.07597370263 | C36: 2560000.01 | D36: 3200000 | E36: 0
A37: C3 | B37: 0.07528341782 | C37: 2080000.01 | D37: 2560000 | E37: 0
A38: C4 | B38: 0.074593133 | C38: 1760000.01 | D38: 2080000 | E38: 0
A39: C5 | B39: 0.07390284818 | C39: 1600000.01 | D39: 1760000 | E39: 0
A40: D1 | B40: 0.07321256336 | C40: 1333333.343 | D40: 1600000 | E40: 0
A41: D2 | B41: 0.07252227854 | C41: 1120000.01 | D41: 1333333.333 | E41: 0
A42: D3 | B42: 0.07183199373 | C42: 960000.01 | D42: 1120000 | E42: 0
A43: D4 | B43: 0.07114170891 | C43: 853333.3433 | D43: 960000 | E43: 0
A44: D5 | B44: 0.07045142409 | C44: 800000.01 | D44: 853333.3333 | E44: 0
A45: E1 | B45: 0.06976113927 | C45: 533333.3433 | D45: 800000 | E45: 0
A46: E2 | B46: 0.06907085445 | C46: 320000.01 | D46: 533333.3333 | E46: 0
A47: E3 | B47: 0.06838056964 | C47: 160000.01 | D47: 320000 | E47: 0
A48: E4 | B48: 0.06769028482 | C48: 53333.34333 | D48: 160000 | E48: 0
A49: E5 | B49: 0.067 | C49: 0 | D49: 53333.33333 | E49: 0
A51: Faixa de Complexidade | B51: Valor | C51: Pontos de | D51: Pontos até
A52: ='BASE COMPLEXIDADE'!O3 -> X1 | B52: ='BASE COMPLEXIDADE'!R3 -> 1032.72045 | C52: ='BASE COMPLEXIDADE'!P3 -> 0.01 | D52: ='BASE COMPLEXIDADE'!Q3 -> 112.07 | E52: =IF(A52=FAIXA_COMPLEXIDADE,1,0) -> 1
A53: ='BASE COMPLEXIDADE'!O4 -> X2 | B53: ='BASE COMPLEXIDADE'!R4 -> 2065.4409 | C53: ='BASE COMPLEXIDADE'!P4 -> 112.08 | D53: ='BASE COMPLEXIDADE'!Q4 -> 224.15 | E53: 0
A54: ='BASE COMPLEXIDADE'!O5 -> X3 | B54: ='BASE COMPLEXIDADE'!R5 -> 3098.16135 | C54: ='BASE COMPLEXIDADE'!P5 -> 224.16 | D54: ='BASE COMPLEXIDADE'!Q5 -> 336.22 | E54: 0
A55: ='BASE COMPLEXIDADE'!O6 -> X4 | B55: ='BASE COMPLEXIDADE'!R6 -> 4130.8818 | C55: ='BASE COMPLEXIDADE'!P6 -> 336.23 | D55: ='BASE COMPLEXIDADE'!Q6 -> 448.3 | E55: 0
A56: ='BASE COMPLEXIDADE'!O7 -> X5 | B56: ='BASE COMPLEXIDADE'!R7 -> 5163.60225 | C56: ='BASE COMPLEXIDADE'!P7 -> 448.31 | D56: ='BASE COMPLEXIDADE'!Q7 -> 560.37 | E56: 0
A57: ='BASE COMPLEXIDADE'!O8 -> X6 | B57: ='BASE COMPLEXIDADE'!R8 -> 6196.3227 | C57: ='BASE COMPLEXIDADE'!P8 -> 560.38 | D57: ='BASE COMPLEXIDADE'!Q8 -> ... | E57: 0
A59: RESUMO FINANCEIRO
A60: (A) CUSTO DE IMPLEMENTAÇÃO DO PROJETO | C60: =D60/$D$68 ->  | D60: =CIP -> 0
A61: (B) DOA BASE | D61: =ROUND(CIP*DOA,2) -> 0
A62: (C) COMPLEXIDADE | D62: =ROUND(DOA_Complexidade,2)-ROUND(DOA_Riscos,2) -> 0
A63: (D) RISCOS | D63: =ROUND(DOA_Riscos,2) -> 0
A64: (E) OUTROS | D64: =ROUND(OutrosLançamentos,2) -> 0
A65: (F) VALOR TOTAL DA DOA (B+C+D+E) | D65: =SUBTOTAL(9,D61:D64) -> 0
A66: (G) FUNDO DE INOVAÇÃO | D66: =FINOVACAO -> 0
A67: (H) VALOR DO ISS | C67: =D67/$D$68 ->  | D67: =VALORISS -> 0
A68: (I) VALOR TOTAL DO PROJETO | D68: =SUBTOTAL(9,D60:D67) -> 0

Sheet TABELA DOA (hidden)
A1: Enquadramento | B1: Carteira | C1: Denominação | D1: Percentual | E1: CIA de | F1: CIA Até
A2: =IF(AND(CIA>E2),"SIM","NÃO") -> NÃO | B2: A1 | C2: Carteira A1 | D2: 0.08356683563 | E2: 29333333.34 | F2: 40000000
A3: =IF(AND(CIA>E3,CIA<=F3),"SIM","NÃO") -> NÃO | B3: A2 | C3: Carteira A2 | D3: 0.08287655081 | E3: 20800000.01 | F3: 29333333.33
A4: NÃO | B4: A3 | C4: Carteira A3 | D4: 0.082186266 | E4: 14400000.01 | F4: 20800000
A5: NÃO | B5: A4 | C5: Carteira A4 | D5: 0.08149598118 | E5: 10133333.34 | F5: 14400000
A6: NÃO | B6: A5 | C6: Carteira A5 | D6: 0.08080569636 | E6: 8000000.01 | F6: 10133333.33
A7: NÃO | B7: B1 | C7: Carteira B1 | D7: 0.08011541154 | E7: 6666666.677 | F7: 8000000
A8: NÃO | B8: B2 | C8: Carteira B2 | D8: 0.07942512672 | E8: 5600000.01 | F8: 6666666.667
A9: NÃO | B9: B3 | C9: Carteira B3 | D9: 0.07873484191 | E9: 4800000.01 | F9: 5600000
A10: NÃO | B10: B4 | C10: Carteira B4 | D10: 0.07804455709 | E10: 4266666.677 | F10: 4800000
A11: NÃO | B11: B5 | C11: Carteira B5 | D11: 0.07735427227 | E11: 4000000.01 | F11: 4266666.667
A12: NÃO | B12: C1 | C12: Carteira C1 | D12: 0.07666398745 | E12: 3200000.01 | F12: 4000000
A13: NÃO | B13: C2 | C13: Carteira C2 | D13: 0.07597370263 | E13: 2560000.01 | F13: 3200000
A14: NÃO | B14: C3 | C14: Carteira C3 | D14: 0.07528341782 | E14: 2080000.01 | F14: 2560000
A15: NÃO | B15: C4 | C15: Carteira C4 | D15: 0.074593133 | E15: 1760000.01 | F15: 2080000
A16: NÃO | B16: C5 | C16: Carteira C5 | D16: 0.07390284818 | E16: 1600000.01 | F16: 1760000
A17: NÃO | B17: D1 | C17: Carteira D1 | D17: 0.07321256336 | E17: 1333333.343 | F17: 1600000
A18: NÃO | B18: D2 | C18: Carteira D2 | D18: 0.07252227854 | E18: 1120000.01 | F18: 1333333.333
A19: NÃO | B19: D3 | C19: Carteira D3 | D19: 0.07183199373 | E19: 960000.01 | F19: 1120000
A20: NÃO | B20: D4 | C20: Carteira D4 | D20: 0.07114170891 | E20: 853333.3433 | F20: 960000
A21: NÃO | B21: D5 | C21: Carteira D5 | D21: 0.07045142409 | E21: 800000.01 | F21: 853333.3333
A22: NÃO | B22: E1 | C22: Carteira E1 | D22: 0.06976113927 | E22: 533333.3433 | F22: 800000
A23: NÃO | B23: E2 | C23: Carteira E2 | D23: 0.06907085445 | E23: 320000.01 | F23: 533333.3333
A24: NÃO | B24: E3 | C24: Carteira E3 | D24: 0.06838056964 | E24: 160000.01 | F24: 320000
A25: NÃO | B25: E4 | C25: Carteira E4 | D25: 0.06769028482 | E25: 53333.34333 | F25: 160000
A26: NÃO | B26: E5 | C26: Carteira E5 | D26: 0.067 | E26: 0 | F26: 53333.33333
B28: CIA | C28: =IF(Vigencia<=12,CIP,IF(ISERR(CIP/Vigencia*12),0,CIP/Vigencia*12)) -> 0
B29: Carteira | C29: =IF(ISERROR(VLOOKUP("SIM",A2:B26,2,FALSE)),"",VLOOKUP("SIM",A2:B26,2,FALSE)) -> 
B30: DOA(%) | C30: =ROUND(IF(ISERROR(VLOOKUP(Carteira,$B$2:$D$26,3,FALSE)),0,VLOOKUP(Carteira,$B$2:$D$26,3,FALSE)),4) -> 0
B31: Cia Mín: | C31: =IF(ISERROR(VLOOKUP(Carteira,$B$2:$F$26,4,FALSE)),"",VLOOKUP(Carteira,$B$2:$F$26,4,FALSE)) -> 
B32: Cia Máx: | C32: =IF(ISERROR(VLOOKUP(Carteira,$B$2:$F$26,5,FALSE)),"",VLOOKUP(Carteira,$B$2:$F$26,5,FALSE)) -> 

Sheet COMPLEXIDADE (hidden)
A2: Código | B2: Tipo de atributo | C2: Valor do atributo | D2: Incidência (SIM/NÃO) | E2: Quantidade Iniciação | F2: Unidade da Iniciação | G2: Pontos Iniciação | H2: Quantidade Execução | I2: Unidade da Execução | J2: Pontos Execução | K2: Quantidade Prestação de Contas | L2: Unidade da Prestação de Contas | M2: Pontos Prestação de Contas | N2: Pontos de Complexidade
A3: 1 | B3: Categoria | C3: Nacional | D3: =IF(DB_NACIONAL<>"","SIM","NÃO") -> SIM | E3: =IF(D3="SIM",1,0) -> 1 | F3: Unidade | G3: =VLOOKUP($A3,BASE_COMPLEXIDADE,11,FALSE) -> 1.75 | H3: =IF(D3="SIM",Vigencia,0) -> 1 | I3: Mês de vigência | J3: =VLOOKUP($A3,BASE_COMPLEXIDADE,12,FALSE) -> 10.52531379 | K3: =IF(D3="SIM",1,0) -> 1 | L3: Unidade | M3: =VLOOKUP($A3,BASE_COMPLEXIDADE,13,FALSE) -> 3.509694656 | N3: =(E3*G3)+(H3*J3)+(K3*M3) -> 15.78500845
A4: 2 | C4: Internacional | D4: =IF(DB_INTERNACIONAL<>"","SIM","NÃO") -> NÃO | E4: =IF(D4="SIM",1,0) -> 0 | F4: Unidade | G4: 2 | H4: 0 | I4: Mês de vigência | J4: 12.44099753 | K4: =IF(D4="SIM",1,0) -> 0 | L4: Unidade | M4: 3.119728583 | N4: =(E4*G4)+(H4*J4)+(K4*M4) -> 0
A5: 3 | B5: Tipo de Financiador | C5: Público | D5: =IF(DB_PUBLICO<>"","SIM","NÃO") -> NÃO | E5: 0 | F5: Unidade | G5: 2.25 | H5: 0 | I5: Mês de vigência | J5: 10.4924735 | K5: 0 | L5: Unidade | M5: 3.119728583 | N5: 0
A6: 4 | C6: Privado | D6: =IF(DB_PRIVADO<>"","SIM","NÃO") -> SIM | E6: 1 | F6: Unidade | G6: 1.5 | H6: 1 | I6: Mês de vigência | J6: 11.60357007 | K6: 1 | L6: Unidade | M6: 3.509694656 | N6: 16.61326472
A7: 5 | C7: Economia Mista | D7: =IF(DB_ECONOMIAMISTA<>"","SIM","NÃO") -> NÃO | E7: 0 | F7: Unidade | G7: 1 | H7: 0 | I7: Mês de vigência | J7: 5.473382108 | K7: 0 | L7: Unidade | M7: 1.559864291 | N7: 0
A8: 6 | B8: Agente Financiador | C8: Fiocruz | D8: =IF(DB_FIOCRUZ<>"","SIM","NÃO") -> NÃO | E8: 0 | F8: Unidade | G8: 2 | H8: 0 | I8: Mês de vigência | J8: 9.052974006 | K8: 0 | L8: Unidade | M8: 2.339796437 | N8: 0
A9: 7 | C9: FINEP | D9: =IF(DB_FINEP<>"","SIM","NÃO") -> NÃO | E9: 0 | F9: Unidade | G9: 3 | H9: 0 | I9: Mês de vigência | J9: 15.73597356 | K9: 0 | L9: Unidade | M9: 3.899660729 | N9: 0
A10: 8 | C10: BNDES | D10: =IF(DB_BNDES<>"","SIM","NÃO") -> NÃO | E10: 0 | F10: Unidade | G10: 3 | H10: 0 | I10: Mês de vigência | J10: 13.98996467 | K10: 0 | L10: Unidade | M10: 3.899660729 | N10: 0
A11: 9 | C11: OPAS | D11: =IF(DB_OPAS<>"","SIM","NÃO") -> NÃO | E11: 0 | F11: Unidade | G11: 2.667 | H11: 0 | I11: Mês de vigência | J11: 13.07590986 | K11: 0 | L11: Unidade | M11: 3.509694656 | N11: 0
A12: 10 | C12: Petrobras | D12: =IF(DB_PETROBRAS<>"","SIM","NÃO") -> NÃO | E12: 0 | F12: Unidade | G12: 3 | H12: 0 | I12: Mês de vigência | J12: 15.73597356 | K12: 0 | L12: Unidade | M12: 4.160158065 | N12: 0
A13: 11 | C13: Outros | D13: =IF(DB_OUTROS<>"","SIM","NÃO") -> SIM | E13: 1 | F13: Unidade | G13: 1.5 | H13: 1 | I13: Mês de vigência | J13: 11.49410243 | K13: 1 | L13: Unidade | M13: 3.119728583 | N13: 16.11383101
A14: 12 | B14: Classificação | C14: Ensino | D14: =IF(DB_ENSINO<>"","SIM","NÃO") -> NÃO | E14: 0 | F14: Unidade | G14: 1.75 | H14: 0 | I14: Mês de vigência | J14: 9.206228705 | K14: 0 | L14: Unidade | M14: 2.339796437 | N14: 0
A15: 13 | C15: Pesquisa | D15: =IF(DB_PESQUISA<>"","SIM","NÃO") -> NÃO | E15: 0 | F15: Unidade | G15: 2.25 | H15: 0 | I15: Mês de vigência | J15: 11.13285921 | K15: 0 | L15: Unidade | M15: 3.119728583 | N15: 0
A16: 14 | C16: Extensão | D16: =IF(DB_EXTENSAO<>"","SIM","NÃO") -> NÃO | E16: 0 | F16: Unidade | G16: 1.5 | H16: 0 | I16: Mês de vigência | J16: 9.682412948 | K16: 0 | L16: Unidade | M16: 2.339796437 | N16: 0
A17: 15 | C17: Desenvolvimento Institucional | D17: =IF(DB_DESENVOLVIMENTOINSTITUCIONAL<>"","SIM","NÃO") -> NÃO | E17: 0 | F17: Unidade | G17: 2 | H17: 0 | I17: Mês de vigência | J17: 9.906821615 | K17: 0 | L17: Unidade | M17: 2.600293774 | N17: 0
A18: 16 | C18: Desenvolvimento Científico e Tecnológico | D18: =IF(DB_DESENVOLVIMENTOCIENTIFICO<>"","SIM","NÃO") -> NÃO | E18: 0 | F18: Unidade | G18: 2 | H18: 0 | I18: Mês de vigência | J18: 11.44484199 | K18: 0 | L18: Unidade | M18: 2.72976251 | N18: 0
A19: 17 | C19: Estímulo à Inovação | D19: =IF(DB_ESTIMULOAINOVACAO<>"","SIM","NÃO") -> NÃO | E19: 0 | F19: Unidade | G19: 2.5 | H19: 0 | I19: Mês de vigência | J19: 10.26259145 | K19: 0 | L19: Unidade | M19: 3.119728583 | N19: 0
A20: 18 | B20: Recursos | C20: Projeto de arrecadação (venda de livros) | D20: =IF(DB_PROJETODEARRECADACAO_SIM<>"","SIM","NÃO") -> NÃO | E20: 0 | F20: Unidade | G20: 1.25 | H20: 0 | I20: Mês de vigência | J20: 9.485371193 | K20: 0 | L20: Unidade | M20: 3.639163392 | N20: 0
A21: 44 | C21: Projeto de arrecadação (serviços técnicos especializados) | D21: =IF(DB_SERVICOSTECNICOSESPECIALIZADOS_SIM<>"","SIM","NÃO") -> NÃO | E21: 0 | F21: Unidade | G21: 1 | H21: 0 | I21: Mês de vigência | J21: 10.94676422 | K21: 0 | L21: Unidade | M21: 4.679592874 | N21: 0
A22: 45 | C22: Projeto de arrecadação (produção de insumos para a saúde) | D22: =IF(DB_PRODUCAODEINSUMOS_SIM<>"","SIM","NÃO") -> SIM | E22: 1 | F22: Unidade | G22: 1 | H22: 1 | I22: Mês de vigência | J22: 16.42014632 | K22: 1 | L22: Unidade | M22: 1.559864291 | N22: 18.98001061
A23: 19 | C23: Agentes financiadores múltiplos | D23: =IF(DB_QTDAGENTESFINANCIADORES>1,"SIM","NÃO") -> NÃO | E23: =IF(D23="SIM",DB_QTDAGENTESFINANCIADORES-1,0) -> 0 | F23: Agente financiador adicional | G23: 2 | H23: =E23*DB_QTDPARCELASDESEMBOLSO -> 0 | I23: Parcela de desembolso/financiador adicional | J23: 14.85475904 | K23: =E23 -> 0 | L23: Agente financiador adicional | M23: 4.160158065 | N23: 0
A24: 21 | C24: Custo Operacional com documentação comprobatória | D24: =IF(DB_QTDAGENTESDOCUMENTACAOCUSTOOPERACIONAL>0,"SIM","NÃO") -> NÃO | E24: =DB_QTDAGENTESDOCUMENTACAOCUSTOOPERACIONAL -> 0 | F24: Agente financiador | G24: 1 | H24: =IF(D24="SIM",Vigencia,0) -> 0 | I24: Mês de vigência | J24: 5.473382108 | K24: =IF(D24="SIM",1,0) -> 0 | L24: Unidade | M24: 4.679592874 | N24: 0
A25: 22 | C25: Remanejamento com autorização prévia | D25: =IF(DB_QTDAGENTESAUTORIZACAOREMANEJAMENTO>0,"SIM","NÃO") -> NÃO | E25: =DB_QTDAGENTESAUTORIZACAOREMANEJAMENTO -> 0 | F25: Agente financiador | G25: 2 | H25: 0 | I25: Mês de vigência | J25: 10.54173394 | K25: 0 | L25: Unidade | M25: 3.119728583 | N25: 0
A26: 46 | C26: Fonte proveniente de convênio | D26: NÃO | G26: 0 | H26: 0 | I26: Mês de vigência | J26: 5.473382108 | M26: 0 | N26: 0
A27: 23 | C27: Comprovação de contrapartida financeira e não financeira | D27: =IF(DB_QTDAGENTESCONTRAPARTIDA>0,"SIM","NÃO") -> NÃO | E27: =DB_QTDAGENTESCONTRAPARTIDA -> 0 | F27: Agente financiador | G27: 2.5 | H27: 0 | I27: Mês de vigência | J27: 12.65993282 | K27: 0 | L27: Unidade | M27: 3.899660729 | N27: 0
A28: 25 | B28: Aquisições | C28: Lei 8666/90 | D28: =IF(DB_8666_SIM<>"","SIM","NÃO") -> NÃO | E28: =IF(D28="SIM",1,0) -> 0 | F28: Unidade | G28: 2.25 | H28: 0 | I28: Mês de vigência | J28: 11.46673552 | K28: 0 | L28: Unidade | M28: 2.72976251 | N28: 0
A29: 50 | C29: Decreto 8241/10 | D29: =IF(DB_8241_SIM<>"","SIM","NÃO") -> SIM | G29: 0 | H29: 1 | I29: Mês de vigência | J29: 5.473382108 | M29: 0 | N29: 5.473382108
A30: 26 | C30: Cartão Pesquisa | D30: =IF(DB_QTDCARTAOPESQUISA>0,"SIM","NÃO") -> NÃO | E30: 0 | F30: Unidade | G30: 2 | H30: =E30*Vigencia -> 0 | I30: Cartão/Mês de vigência | J30: 13.68345527 | K30: 0 | L30: Unidade | M30: 3.119728583 | N30: 0
A31: 27 | C31: Linhas Telefônicas | D31: =IF(DB_QTDLINHATELEFONICA>0,"SIM","NÃO") -> NÃO | E31: =DB_QTDLINHATELEFONICA -> 0 | G31: 0 | H31: =E31*Vigencia -> 0 | I31: Linha telefônica/Mês de vigência | J31: 10.94676422 | K31: 0 | L31: Unidade | M31: 3.119728583 | N31: 0
A32: 28 | B32: Operações | C32: Coordenadores múltiplos (subprojetos) | D32: =IF(DB_QTDCOORDENADORESSUBPROJETOS>0,"SIM","NÃO") -> NÃO | E32: =DB_QTDCOORDENADORESSUBPROJETOS -> 0 | F32: Subprojeto | G32: 1.667 | H32: =E32 -> 0 | I32: Subprojeto | J32: 12.9390753 | K32: =E32 -> 0 | L32: Subprojeto | M32: 4.289626802 | N32: 0
A33: 30 | C33: Agente financiador com sistema específico | D33: =IF(DB_SISTEMAESPECIFICO_SIM<>"","SIM","NÃO") -> NÃO | E33: =IF(D33="SIM",1,0) -> 0 | F33: Unidade | G33: 2 | H33: =IF(D33="SIM",Vigencia,0) -> 0 | I33: Mês de vigência | J33: 5.473382108 | K33: =IF(D33="SIM",1,0) -> 0 | L33: Unidade | M33: 3.119728583 | N33: 0
A34: 47 | C34: Processo seletivo para contratação de pessoas | D34: =IF(DB_QTDPROCESSOSSELETIVOS>0,"SIM","NÃO") -> NÃO | G34: 0 | H34: =DB_QTDPROCESSOSSELETIVOS -> 0 | I34: Quantidade de processos | J34: 16.42014632 | M34: 0 | N34: 0
A35: 48 | C35: Controles Paralelos (Ex.: LOA/TED no mesmo projeto) | D35: =IF(DB_CONTROLESPARALELOS_SIM<>"","SIM","NÃO") -> NÃO | E35: =IF(D35="SIM",1,0) -> 0 | F35: Unidade | G35: 1 | H35: =IF(D35="SIM",Vigencia,0) -> 0 | I35: Mês de vigência | J35: 5.473382108 | K35: =IF(D35="SIM",1,0) -> 0 | L35: Unidade | M35: 1.559864291 | N35: =(E35*G35)+(H35*J35)+(K35*M35) -> 0
A36: 31 | C36: Equipe executora em outros estados (fora RJ e DF) | D36: =IF(DB_QTDEQUIPESFORARJDF>0,"SIM","NÃO") -> NÃO | E36: 0 | F36: Unidade | G36: 2.25 | H36: =DB_QTDEQUIPESFORARJDF -> 0 | I36: Localidade/Mês de vigência | J36: 11.57620316 | K36: 0 | L36: Unidade | M36: 3.509694656 | N36: 0
A37: 32 | B37: Iniciação | C37: Negociação de garantia contratual | D37: =IF(DB_QTDAGENTEGARANTIACONTRATUAL>0,"SIM","NÃO") -> NÃO | E37: =DB_QTDAGENTEGARANTIACONTRATUAL -> 0 | F37: Agente financiador | G37: 2 | J37: 0 | M37: 0 | N37: 0
A38: 33 | C38: Documentação suplementar para habilitação | D38: =IF(DB_DOCUMENTACAOSUPLEMENTAR_SIM<>"","SIM","NÃO") -> NÃO | E38: =IF(D38="SIM",1,0) -> 0 | F38: Unidade | G38: 1 | J38: 0 | M38: 0 | N38: 0
A39: 34 | C39: Modelos diferentes para apresentação da proposta | D39: =IF(DB_QTDAGENTEMODELOPROPRIOPROPOSTA>0,"SIM","NÃO") -> NÃO | E39: =DB_QTDAGENTEMODELOPROPRIOPROPOSTA -> 0 | F39: Agente financiador | G39: 1 | J39: 0 | M39: 0 | N39: 0
A40: 35 | C40: Projeto de edital | D40: =IF(DB_PROJETOEDITAL_SIM<>"","SIM","NÃO") -> NÃO | E40: 0 | F40: Unidade | G40: 3 | J40: 0 | M40: 0 | N40: 0
A41: 49 | C41: Projeto com edital Fiocruz (Programa) | D41: =IF(DB_EDITALFIOCRUZ_SIM<>"","SIM","NÃO") -> NÃO | E41: =IF(D41="SIM",1,0) -> 0 | F41: Unidade | G41: 2 | J41: 0 | M41: 0 | N41: 0
A42: 36 | C42: Necessidade de integração com outras áreas da Fiotec | D42: =IF(DB_CONHECIMENTOTECNICOFIOTEC_SIM<>"","SIM","NÃO") -> NÃO | E42: 0 | F42: Unidade | G42: 2 | J42: 0 | M42: 0 | N42: 0
A43: 37 | C43: Necessidade de participação direta na (re)negociação do projeto | D43: =IF(DB_QTDAGENTENEGOCIACAOFIOTEC>0,"SIM","NÃO") -> NÃO | E43: =DB_QTDAGENTENEGOCIACAOFIOTEC -> 0 | F43: Agente financiador | G43: 3 | J43: 0 | M43: 0 | N43: 0
A44: 38 | C44: Necessidade de submissão e aprovação dos órgãos reguladores | D44: =IF(DB_QTDORGAOREGULADOR>0,"SIM","NÃO") -> NÃO | E44: =DB_QTDORGAOREGULADOR -> 0 | F44: Órgão regulador | G44: 2 | J44: 0 | M44: 0 | N44: 0
A45: 39 | C45: Várias instâncias de aprovação | D45: =IF(DB_QTDINSTACIAAPROVACAO>1,"SIM","NÃO") -> NÃO | E45: =IF(D45="SIM",DB_QTDINSTACIAAPROVACAO-1,0) -> 0 | F45: Instância de aprovação (a partir da segunda) | G45: 3 | J45: 0 | M45: 0 | N45: 0
A46: 40 | B46: Prestação de contas | C46: Parcela reembolso | D46: =IF(DB_PARCELAREEMBOLSO_SIM<>"","SIM","NÃO") -> NÃO | G46: 0 | J46: 0 | K46: =IF(D46="SIM",1,0) -> 0 | L46: Unidade | M46: 3.119728583 | N46: 0
A47: 41 | C47: Prestação de contas sem formulário definido | D47: =IF(DB_PRESTACAODECONTASSEMFORMULARIO_SIM<>"","SIM","NÃO") -> NÃO | G47: 0 | J47: 0 | K47: 0 | L47: Unidade | M47: 1.559864291 | N47: 0
A48: 42 | C48: Prestação de contas diferenciada | D48: =IF(DB_PRESTACAODECONTASDIFERENCIADA_SIM<>"","SIM","NÃO") -> NÃO | G48: 0 | J48: 0 | K48: 0 | L48: Unidade | M48: 3.119728583 | N48: 0
A49: 43 | C49: Prestação de contas com envio de documentação comprobatória | D49: =IF(DB_PRESTACAODECONTASENVIODOCUMENTACAO_SIM<>"","SIM","NÃO") -> NÃO | G49: 0 | J49: 0 | K49: 0 | L49: Unidade | M49: 4.679592874
A50: 51 | C50: Prestação de contas Decreto 7.423/2010 | D50: SIM | G50: 0 | J50: 0 | K50: 1 | L50: Unidade | M50: 1.559864291 | N50: 1.559864291
A51: 52 | B51: Riscos | C51: Contratação de celetista | D51: =IF(H51>0,"SIM","NÃO") -> NÃO | H51: ='BASE COMPLEXIDADE'!E51 -> 0 | I51: Profissionais | J51: =IF(H51=0,0,'BASE COMPLEXIDADE'!L51/H51) -> 0 | N51: 0
A52: 53 | C52: Contratação de bolsista | D52: =IF(H52>0,"SIM","NÃO") -> NÃO | H52: ='BASE COMPLEXIDADE'!E52 -> 0 | I52: Profissionais | J52: =IF(H52=0,0,'BASE COMPLEXIDADE'!L52/H52) -> 0 | N52: 0
A53: 54 | C53: Contratação de autônomo | D53: NÃO | H53: ='BASE COMPLEXIDADE'!E53 -> 0 | I53: Profissionais | J53: =IF(H53=0,0,'BASE COMPLEXIDADE'!L53/H53) -> 0 | N53: 0
B54: TOTAL | N54: =SUM(N3:N53) -> 74.5253612
B55: FAIXA DE COMPLEXIDADE | N55: =IF(DOA_TOTALPONTOS<'BASE COMPLEXIDADE'!P4,"X1",IF(DOA_TOTALPONTOS<'BASE COMPLEXIDADE'!P5,"X2",IF(DOA_TOTALPONTOS<'BASE COMPLEXIDADE'!P6,"X3",IF(DOA_TOTALPONTOS<'BASE COMPLEXIDADE'!P7,"X4",IF(DOA_TOTALPONTOS<'BASE COMPLEXIDADE'!P8,"X5","X6"))))) -> X1
B56: TOTAL | N56: =IF(DOA=0,0,VLOOKUP(FAIXA_COMPLEXIDADE,'BASE COMPLEXIDADE'!$O$3:$R$8,4,FALSE)) -> 0

Sheet BASE COMPLEXIDADE (hidden)
A1: Base Iniciação: | B1: 6851.93 | C1: Base Execução: | D1: 2762.85 | E1: Base PC: | F1: 10129.84 | G1: I.Complexidade: | H1: 0.3 | I1: Fator Vigência: | J1: =Vigencia/12 -> 0.08333333333 | K1: Pontos Ponderados | O1: Faixas de Complexidade
A2: Item | B2: Descrição | C2: Tipo | D2: Peso Iniciação | E2: Peso Execução | F2: Peso P. de Contas | G2: Valor Iniciação | H2: Valor Execução | I2: Valor P. Contas | J2: Por mês | K2: Iniciação | L2: Execução | M2: P.Contas | O2: Faixa | P2: Pontos de | Q2: Pontos até | R2: Valor
A3: 1 | B3: Nacional | C3: Categoria | D3: 1.75 | E3: 1.923 | F3: 2.25 | G3: =($B$1*$H$1)*(D3/SUBTOTAL(9,D$3:D$53)) -> 46.9714725 | H3: =($D$1*$H$1)*(E3/SUBTOTAL(9,E$3:E$53)) -> 23.54235654 | I3: =($F$1*$H$1)*(F3/SUBTOTAL(9,F$3:F$53)) -> 94.20315772 | J3: =H3/12 -> 1.961863045 | K3: =D3*FatorIniciação -> 1.75 | L3: =E3*FatorExecução -> 10.52531379 | M3: =F3*FatorPrestaçãoDeContas -> 3.509694656 | O3: X1 | P3: 0.01 | Q3: =ROUND(SUM($K$3:$M$53)/5,2) -> 112.07 | R3: =((($B$1+($D$1*Vigencia/12)+$F$1)*$H$1)/5)+DOA_Riscos -> 1032.72045
A4: 2 | B4: Internacional | C4: Categoria | D4: 2 | E4: 2.273 | F4: 2 | G4: =($B$1*$H$1)*(D4/SUBTOTAL(9,D$3:D$53)) -> 53.68168286 | H4: =($D$1*$H$1)*(E4/SUBTOTAL(9,E$3:E$53)) -> 27.82723683 | I4: =($F$1*$H$1)*(F4/SUBTOTAL(9,F$3:F$53)) -> 83.7361402 | J4: =H4/12 -> 2.318936402 | K4: 2 | L4: 12.44099753 | M4: 3.119728583 | O4: X2 | P4: =Q3+0.01 -> 112.08 | Q4: =ROUND(SUM($K$3:$M$53)/5*2,2) -> 224.15 | R4: =(((($B$1+($D$1*Vigencia/12)+$F$1)*$H$1)/5)*2)+DOA_Riscos -> 2065.4409
A5: 3 | B5: Público | C5: Tipo de Financiador | D5: 2.25 | E5: 1.917 | F5: 2 | G5: 60.39189322 | H5: 23.46890145 | I5: 83.7361402 | J5: 1.955741788 | K5: 2.25 | L5: 10.4924735 | M5: 3.119728583 | O5: X3 | P5: =Q4+0.01 -> 224.16 | Q5: =ROUND(SUM($K$3:$M$53)/5*3,2) -> 336.22 | R5: =(((($B$1+($D$1*Vigencia/12)+$F$1)*$H$1)/5)*3)+DOA_Riscos -> 3098.16135
A6: 4 | B6: Privado | C6: Tipo de Financiador | D6: 1.5 | E6: 2.12 | F6: 2.25 | G6: 40.26126214 | H6: 25.95413202 | I6: 94.20315772 | J6: 2.162844335 | K6: 1.5 | L6: 11.60357007 | M6: 3.509694656 | O6: X4 | P6: 336.23 | Q6: =ROUND(SUM($K$3:$M$53)/5*4,2) -> 448.3 | R6: =(((($B$1+($D$1*Vigencia/12)+$F$1)*$H$1)/5)*4)+DOA_Riscos -> 4130.8818
A7: 5 | B7: Economia Mista | C7: Tipo de Financiador | D7: 1 | E7: 1 | F7: 1 | G7: 26.84084143 | H7: 12.2425151 | I7: 41.8680701 | J7: 1.020209592 | K7: 1 | L7: 5.473382108 | M7: 1.559864291 | O7: X5 | P7: 448.31 | Q7: =ROUND(SUM($K$3:$M$53),2) -> 560.37 | R7: =(((($B$1+($D$1*Vigencia/12)+$F$1)*$H$1)/5)*5)+DOA_Riscos -> 5163.60225
A8: 6 | B8: Fiocruz | C8: Agente Financiador | D8: 2 | E8: 1.654 | F8: 1.5 | G8: 53.68168286 | H8: 20.24911998 | I8: 62.80210515 | J8: 1.687426665 | K8: 2 | L8: 9.052974006 | M8: 2.339796437 | O8: X6 | P8: 560.38 | Q8: ... | R8: =R7*1.2 -> 6196.3227
A9: 7 | B9: FINEP | C9: Agente Financiador | D9: 3 | E9: 2.875 | F9: 2.5 | G9: 80.52252429 | H9: 35.19723092 | I9: 104.6701752 | J9: 2.933102577 | K9: 3 | L9: 15.73597356 | M9: 3.899660729
A10: 8 | B10: BNDES | C10: Agente Financiador | D10: 3 | E10: 2.556 | F10: 2.5 | G10: 80.52252429 | H10: 31.2918686 | I10: 104.6701752 | J10: 2.607655717 | K10: 3 | L10: 13.98996467 | M10: 3.899660729 | O10: Faixa atribuída: | Q10: =FAIXA_COMPLEXIDADE -> X1
A11: 9 | B11: OPAS | C11: Agente Financiador | D11: 2.667 | E11: 2.389 | F11: 2.25 | G11: 71.58452409 | H11: 29.24736858 | I11: 94.20315772 | J11: 2.437280715 | K11: 2.667 | L11: 13.07590986 | M11: 3.509694656 | O11: Pts. Mínimo: | Q11: =VLOOKUP(Q10,$O$3:$R$8,2,FALSE) -> 0.01
A12: 10 | B12: Petrobras | C12: Agente Financiador | D12: 3 | E12: 2.875 | F12: 2.667 | G12: 80.52252429 | H12: 35.19723092 | I12: 111.662143 | J12: 2.933102577 | K12: 3 | L12: 15.73597356 | M12: 4.160158065 | O12: Pts. Máximo: | Q12: =VLOOKUP(Q10,$O$3:$R$8,3,FALSE) -> 112.07
A13: 11 | B13: Outros | C13: Agente Financiador | D13: 1.5 | E13: 2.1 | F13: 2 | G13: 40.26126214 | H13: 25.70928172 | I13: 83.7361402 | J13: 2.142440143 | K13: 1.5 | L13: 11.49410243 | M13: 3.119728583 | O13: Valor: | Q13: =VLOOKUP(Q10,$O$3:$R$8,4,FALSE) -> 1032.72045
A14: 12 | B14: Ensino | C14: Classificação | D14: 1.75 | E14: 1.682 | F14: 1.5 | G14: 46.9714725 | H14: 20.5919104 | I14: 62.80210515 | J14: 1.715992534 | K14: 1.75 | L14: 9.206228705 | M14: 2.339796437
A15: 13 | B15: Pesquisa | C15: Classificação | D15: 2.25 | E15: 2.034 | F15: 2 | G15: 60.39189322 | H15: 24.90127572 | I15: 83.7361402 | J15: 2.07510631 | K15: 2.25 | L15: 11.13285921 | M15: 3.119728583
A16: 14 | B16: Extensão | C16: Classificação | D16: 1.5 | E16: 1.769 | F16: 1.5 | G16: 40.26126214 | H16: 21.65700922 | I16: 62.80210515 | J16: 1.804750768 | K16: 1.5 | L16: 9.682412948 | M16: 2.339796437
A17: 15 | B17: Desenvolvimento Institucional | C17: Classificação | D17: 2 | E17: 1.81 | F17: 1.667 | G17: 53.68168286 | H17: 22.15895234 | I17: 69.79407285 | J17: 1.846579361 | K17: 2 | L17: 9.906821615 | M17: 2.600293774
A18: 16 | B18: Desenvolvimento Científico e Tecnológico | C18: Classificação | D18: 2 | E18: 2.091 | F18: 1.75 | G18: 53.68168286 | H18: 25.59909908 | I18: 73.26912267 | J18: 2.133258257 | K18: 2 | L18: 11.44484199 | M18: 2.72976251
A19: 17 | B19: Estímulo à Inovação | C19: Classificação | D19: 2.5 | E19: 1.875 | F19: 2 | G19: 67.10210357 | H19: 22.95471582 | I19: 83.7361402 | J19: 1.912892985 | K19: 2.5 | L19: 10.26259145 | M19: 3.119728583
A20: 18 | B20: Projeto de arrecadação (venda de livros) | C20: Recursos | D20: 1.25 | E20: 1.733 | F20: 2.333 | G20: 33.55105179 | H20: 21.21627867 | I20: 97.67820754 | J20: 1.768023223 | K20: 1.25 | L20: 9.485371193 | M20: 3.639163392
A21: 44 | B21: Projeto de arrecadação (serviços técnicos especializados) | C21: Recursos | D21: 1 | E21: 2 | F21: 3 | G21: 26.84084143 | H21: 24.48503021 | I21: 125.6042103 | J21: =H21/12 -> 2.040419184 | K21: 1 | L21: 10.94676422 | M21: 4.679592874
A22: 45 | B22: Projeto de arrecadação (produção de insumos para a saúde) | C22: Recursos | D22: 1 | E22: 3 | F22: 1 | G22: 26.84084143 | H22: 36.72754531 | I22: 41.8680701 | J22: =H22/12 -> 3.060628776 | K22: 1 | L22: 16.42014632 | M22: 1.559864291
A23: 19 | B23: Agentes financiadores múltiplos | C23: Recursos | D23: 2 | E23: 2.714 | F23: 2.667 | G23: 53.68168286 | H23: 33.22618599 | I23: 111.662143 | J23: 2.768848832 | K23: 2 | L23: 14.85475904 | M23: 4.160158065
A24: 21 | B24: Custo Operacional explícito com documentação comprobatória | C24: Recursos | D24: 1 | E24: 1 | F24: 3 | G24: 26.84084143 | H24: 12.2425151 | I24: 125.6042103 | J24: 1.020209592 | K24: 1 | L24: 5.473382108 | M24: 4.679592874
A25: 22 | B25: Remanejamento com autorização prévia | C25: Recursos | D25: 2 | E25: 1.926 | F25: 2 | G25: 53.68168286 | H25: 23.57908409 | I25: 83.7361402 | J25: 1.964923674 | K25: 2 | L25: 10.54173394 | M25: 3.119728583
A26: 46 | B26: Fonte proveniente de convênio | C26: Recursos | D26: 0 | E26: 1 | F26: 0 | G26: 0 | H26: 12.2425151 | I26: 0 | J26: =H26/12 -> 1.020209592 | K26: 0 | L26: 5.473382108 | M26: 0
A27: 23 | B27: Comprovação de contrapartida financeira e não financeira | C27: Recursos | D27: 2.5 | E27: 2.313 | F27: 2.5 | G27: 67.10210357 | H27: 28.31693743 | I27: 104.6701752 | J27: 2.359744786 | K27: 2.5 | L27: 12.65993282 | M27: 3.899660729
A28: 25 | B28: Lei 8666/90 | C28: Aquisições | D28: 2.25 | E28: 2.095 | F28: 1.75 | G28: 60.39189322 | H28: 25.64806914 | I28: 73.26912267 | J28: 2.137339095 | K28: 2.25 | L28: 11.46673552 | M28: 2.72976251
A29: 50 | B29: Decreto 8241/10 | C29: Aquisições | D29: 0 | E29: 1 | F29: 0 | G29: 0 | H29: 12.2425151 | I29: 0 | J29: 1.020209592 | K29: 0 | L29: 5.473382108 | M29: 0
A30: 26 | B30: Cartão Pesquisa | C30: Aquisições | D30: 2 | E30: 2.5 | F30: 2 | G30: 53.68168286 | H30: 30.60628776 | I30: 83.7361402 | J30: 2.55052398 | K30: 2 | L30: 13.68345527 | M30: 3.119728583
A31: 27 | B31: Linhas telefônicas | C31: Aquisições | D31: 0 | E31: 2 | F31: 2 | G31: 0 | H31: 24.48503021 | I31: 83.7361402 | J31: 2.040419184 | K31: 0 | L31: 10.94676422 | M31: 3.119728583
A32: 28 | B32: Coordenadores múltiplos (subprojetos) | C32: Operações | D32: 1.667 | E32: 2.364 | F32: 2.75 | G32: 44.74368266 | H32: 28.9413057 | I32: 115.1371928 | J32: 2.411775475 | K32: 1.667 | L32: 12.9390753 | M32: 4.289626802
A33: 30 | B33: Agente financiador com sistema específico | C33: Operações | D33: 2 | E33: 1 | F33: 2 | G33: 53.68168286 | H33: 12.2425151 | I33: 83.7361402 | J33: 1.020209592 | K33: 2 | L33: 5.473382108 | M33: 3.119728583
A34: 47 | B34: Processo seletivo para contratação de pessoas | C34: Operações | D34: 0 | E34: 3 | F34: 0 | G34: 0 | H34: 36.72754531 | I34: 0 | J34: =H34/12 -> 3.060628776 | K34: 0 | L34: 16.42014632 | M34: 0
A35: 48 | B35: Controles Paralelos (Ex.: LOA/TED no mesmo projeto) | C35: Operações | D35: 1 | E35: 1 | F35: 1 | G35: 26.84084143 | H35: 12.2425151 | I35: 41.8680701 | J35: =H35/12 -> 1.020209592 | K35: 1 | L35: 5.473382108 | M35: 1.559864291
A36: 31 | B36: Equipe executora em outros estados (fora RJ e DF) | C36: Operações | D36: 2.25 | E36: 2.115 | F36: 2.25 | G36: 60.39189322 | H36: 25.89291944 | I36: 94.20315772 | J36: 2.157743287 | K36: 2.25 | L36: 11.57620316 | M36: 3.509694656
A37: 32 | B37: Negociação de garantia contratual | C37: Iniciação | D37: 2 | E37: 0 | F37: 0 | G37: 53.68168286 | H37: 0 | I37: 0 | J37: 0 | K37: 2 | L37: 0 | M37: 0
A38: 33 | B38: Documentação suplementar para habilitação | C38: Iniciação | D38: 1 | E38: 0 | F38: 0 | G38: 26.84084143 | H38: 0 | I38: 0 | J38: 0 | K38: 1 | L38: 0 | M38: 0
A39: 34 | B39: Modelos diferentes para apresentação de proposta | C39: Iniciação | D39: 1 | E39: 0 | F39: 0 | G39: 26.84084143 | H39: 0 | I39: 0 | J39: 0 | K39: 1 | L39: 0 | M39: 0
A40: 35 | B40: Projeto de edital | C40: Iniciação | D40: 3 | E40: 0 | F40: 0 | G40: 80.52252429 | H40: 0 | I40: 0 | J40: 0 | K40: 3 | L40: 0 | M40: 0
A41: 49 | B41: Projeto com edital Fiocruz (Programa) | C41: Iniciação | D41: 2 | E41: 0 | F41: 0 | G41: 53.68168286 | H41: 0 | I41: 0 | J41: =H41/12 -> 0 | K41: 2 | L41: 0 | M41: 0
A42: 36 | B42: Necessidade de integração com outras áreas da Fiotec | C42: Iniciação | D42: 2 | E42: 0 | F42: 0 | G42: 53.68168286 | H42: 0 | I42: 0 | J42: 0 | K42: 2 | L42: 0 | M42: 0
A43: 37 | B43: Necessidade de participação direta na (re)negociação do projeto | C43: Iniciação | D43: 3 | E43: 0 | F43: 0 | G43: 80.52252429 | H43: 0 | I43: 0 | J43: 0 | K43: 3 | L43: 0 | M43: 0
A44: 38 | B44: Necessidade de submissão e aprovação dos órgãos reguladores | C44: Iniciação | D44: 2 | E44: 0 | F44: 0 | G44: 53.68168286 | H44: 0 | I44: 0 | J44: 0 | K44: 2 | L44: 0 | M44: 0
A45: 39 | B45: Várias instâncias de aprovação | C45: Iniciação | D45: 3 | E45: 0 | F45: 0 | G45: 80.52252429 | H45: 0 | I45: 0 | J45: 0 | K45: 3 | L45: 0 | M45: 0
A46: 40 | B46: Parcela reembolso | C46: Prestação de Contas | D46: 0 | E46: 0 | F46: 2 | G46: 0 | H46: 0 | I46: 83.7361402 | J46: 0 | K46: 0 | L46: 0 | M46: 3.119728583
A47: 41 | B47: Prestação de Contas sem formulário definido | C47: Prestação de Contas | D47: 0 | E47: 0 | F47: 1 | G47: 0 | H47: 0 | I47: 41.8680701 | J47: 0 | K47: 0 | L47: 0 | M47: 1.559864291
A48: 42 | B48: Prestação de Contas diferenciada - Biomanguinhos | C48: Prestação de Contas | D48: 0 | E48: 0 | F48: 2 | G48: 0 | H48: 0 | I48: 83.7361402 | J48: 0 | K48: 0 | L48: 0 | M48: 3.119728583
A49: 43 | B49: Prestação de Contas com envio de documentação comprobatória | C49: Prestação de Contas | D49: 0 | E49: 0 | F49: 3 | G49: 0 | H49: 0 | I49: 125.6042103 | J49: =H49/12 -> 0 | K49: 0 | L49: 0 | M49: 4.679592874
A50: 51 | B50: Prestação de contas Decreto 7.423/2010 | C50: Prestação de Contas | D50: 0 | E50: 0 | F50: 1 | G50: 0 | H50: 0 | I50: 41.8680701 | J50: 0 | K50: 0 | L50: 0 | M50: 1.559864291
A51: 52 | B51: Contratação de celetista | C51: Riscos | D51: 0 | E51: =QTDRiscoCeletista -> 0 | F51: 0 | G51: 0 | H51: =RiscoCeletista -> 0 | I51: 0 | J51: 0 | K51: =D51*FatorIniciação -> 0 | L51: =E51*FatorExecução -> 0 | M51: =F51*FatorPrestaçãoDeContas -> 0
A52: 53 | B52: Contratação de bolsista | C52: Riscos | D52: 0 | E52: =QtdRiscoBolsista -> 0 | F52: 0 | G52: 0 | H52: =RiscoBolsista -> 0 | I52: 0 | J52: 0 | K52: 0 | L52: 0 | M52: 0
A53: 54 | B53: Contratação de autônomo | C53: Riscos | D53: 0 | E53: =QtdRiscoAutônomo -> 0 | F53: 0 | G53: 0 | H53: =RiscoAutônomo -> 0 | I53: 0 | K53: 0 | L53: 0 | M53: 0
C56: Total de Pontos: | D56: =SUM(D3:D53) -> 76.584 | E56: =SUM(E3:E53)*FatorVigência -> 5.641916667 | F56: =SUM(F3:F53) -> 72.584
C57: Vlr.Unit.Ponto: | D57: =B1*H1/D56 -> 26.84084143 | E57: =D1*H1/E56 -> 146.9101812 | F57: =F1*H1/F56 -> 41.8680701
C58: Fatores: | D58: =D57/MIN($D$57:$F$57) -> 1 | E58: =E57/MIN($D$57:$F$57) -> 5.473382108 | F58: 1.559864291

Sheet RISCOS (hidden)
A1: Risco | B1: % Valor ou Valor Unitário | C1: Prazo | D1: Valor calculado | E1: Valor do risco | F1: Quantidade
A2: Contratação de celetista | B2: 0.01 | C2: 2 anos | D2: =IF(ISERROR(SUMIF(Modalidade,"Celetista",ValorModalidade)),0,SUMIF(Modalidade,"Celetista",ValorModalidade)) -> 0 | E2: =D2*B2 -> 0 | F2: =SUMIFS(Quantidade_de_Profissionais,Modalidade,"Celetista") -> 0
A3: Contratação de bolsista | B3: 0.025 | C3: 2 anos | D3: =IF(ISERROR(SUMIF(Modalidade,"Bolsista",ValorModalidade)),0,SUMIF(Modalidade,"Bolsista",ValorModalidade)) -> 0 | E3: =D3*B3 -> 0 | F3: =SUMIFS(Quantidade_de_Profissionais,Modalidade,"Bolsista") -> 0
A4: Contratação de autônomo | B4: 0.0025 | C4: 2 anos | D4: =IF(ISERROR(SUMIF(Modalidade,"Autônomo",ValorModalidade)),0,SUMIF(Modalidade,"Autônomo",ValorModalidade)) -> 0 | E4: 0 | F4: =SUMIFS(Quantidade_de_Profissionais,Modalidade,"Autônomo") -> 0
A5: TOTAL DE PROVISIONAMENTO DE RISCO | E5: =SUM(E2:E4) -> 0

Sheet OUTROS (hidden)
A1: Descrição | B1: Tipo | C1: Valor | D1: Valor do lançamento
A2: Desconto de... | B2: DESCONTO | C2: 0 | D2: =C2*IF(B2="DESCONTO",-1,1) -> 0
A3: Acréscimo de... | B3: ACRÉSCIMO | C3: 0 | D3: =C3*IF(B3="DESCONTO",-1,1) -> 0
D4: 0
A6: TOTAL DE OUTROS LANÇAMENTOS | D6: =SUM(D2:D5) -> 0
